Workbook

Sheet Sheet1
A1: 附件：
A2: 毕节市教育局所属事业单位2025年面向社会 公开招聘工作人员总成绩
A3: 序号 | B3: 姓名 | C3: 准考证号 | D3: 报考单位及代码 | E3: 报考岗位及代码 | F3: 笔试成绩 | G3: 面试成绩 | H3: 总成绩 （折算为百分制）
A4: 1 | B4: 陈卓睿 | C4: 4252241903607 | D4: 0009毕节市民族中学 | E4: 22401000901语文教师 | F4: 189.00 | G4: 84.67 | H4: =F4/3*0.5+G4*0.5 -> 73.84
A5: 2 | B5: 罗美静 | C5: 4252241903329 | D5: 0009毕节市民族中学 | E5: 22401000901语文教师 | F5: 187.00 | G5: 79.00 | H5: 70.67
A6: 3 | B6: 张柳 | C6: 4252241902020 | D6: 0009毕节市民族中学 | E6: 22401000901语文教师 | F6: 178.00 | G6: 80.67 | H6: 70.00
A7: 4 | B7: 蔡梦 | C7: 4252241902715 | D7: 0009毕节市民族中学 | E7: 22401000901语文教师 | F7: 175.50 | G7: 67.67 | H7: 63.09
A8: 5 | B8: 朱林淼 | C8: 4252241902006 | D8: 0009毕节市民族中学 | E8: 22401000901语文教师 | F8: 175.00 | G8: 74.67 | H8: 66.50
A9: 6 | B9: 赵海萍 | C9: 4252241902027 | D9: 0009毕节市民族中学 | E9: 22401000901语文教师 | F9: 174.50 | G9: 80.33 | H9: 69.25
A10: 7 | B10: 何雪 | C10: 4252241903317 | D10: 0009毕节市民族中学 | E10: 22401000902数学教师 | F10: 197.50 | G10: 80.33 | H10: 73.08
A11: 8 | B11: 文大银 | C11: 4252241902827 | D11: 0009毕节市民族中学 | E11: 22401000902数学教师 | F11: 183.50 | G11: 75.00 | H11: 68.08
A12: 9 | B12: 陈石墙 | C12: 4252241902922 | D12: 0009毕节市民族中学 | E12: 22401000902数学教师 | F12: 178.00 | G12: 76.00 | H12: 67.67
A13: 10 | B13: 张梅 | C13: 4252241903919 | D13: 0009毕节市民族中学 | E13: 22401000902数学教师 | F13: 177.00 | G13: 78.67 | H13: 68.84
A14: 11 | B14: 罗英敏 | C14: 4252241903616 | D14: 0009毕节市民族中学 | E14: 22401000902数学教师 | F14: 174.00 | G14: 80.67 | H14: 69.34
A15: 12 | B15: 陈筱璐 | C15: 4252241902722 | D15: 0009毕节市民族中学 | E15: 22401000902数学教师 | F15: 171.00 | G15: 80.33 | H15: 68.67
A16: 13 | B16: 张亚亚 | C16: 4252241903730 | D16: 0009毕节市民族中学 | E16: 22401000903英语教师 | F16: 187.00 | G16: 72.07 | H16: 67.20
A17: 14 | B17: 孙倩 | C17: 4252241902326 | D17: 0009毕节市民族中学 | E17: 22401000903英语教师 | F17: 180.00 | G17: 78.83 | H17: 69.42
A18: 15 | B18: 祝芳云 | C18: 4252241902325 | D18: 0009毕节市民族中学 | E18: 22401000903英语教师 | F18: 177.50 | G18: 75.67 | H18: 67.42
A19: 16 | B19: 王燕菊 | C19: 4252241902724 | D19: 0009毕节市民族中学 | E19: 22401000903英语教师 | F19: 175.00 | G19: 75.37 | H19: 66.85
A20: 17 | B20: 徐雪 | C20: 4252241902825 | D20: 0009毕节市民族中学 | E20: 22401000903英语教师 | F20: 175.00 | G20: 70.43 | H20: 64.38
A21: 18 | B21: 刘莉 | C21: 4252241902717 | D21: 0009毕节市民族中学 | E21: 22401000903英语教师 | F21: 171.50 | G21: 76.33 | H21: 66.75
A22: 19 | B22: 夏晓彤 | C22: 1152240103204 | D22: 0010毕节市实验高级中学 | E22: 22401001001工作人员 | F22: 211.00 | G22: 缺考 | H22: =F22/3*0.5 -> 35.17
A23: 20 | B23: 何涵霜 | C23: 1152240102726 | D23: 0010毕节市实验高级中学 | E23: 22401001001工作人员 | F23: 209.00 | G23: 77.40 | H23: 73.53
A24: 21 | B24: 吕娇 | C24: 1152240101219 | D24: 0010毕节市实验高级中学 | E24: 22401001001工作人员 | F24: 202.50 | G24: 78.80 | H24: 73.15
A25: 22 | B25: 邹丹 | C25: 1152240202819 | D25: 0010毕节市实验高级中学 | E25: 22401001002工作人员 | F25: 213.00 | G25: 75.20 | H25: 73.10
A26: 23 | B26: 陈智 | C26: 1152240103013 | D26: 0010毕节市实验高级中学 | E26: 22401001002工作人员 | F26: 205.00 | G26: 76.20 | H26: 72.27
A27: 24 | B27: 胡甜 | C27: 1152240100827 | D27: 0010毕节市实验高级中学 | E27: 22401001002工作人员 | F27: 202.00 | G27: 78.20 | H27: 72.77
A28: 25 | B28: 王琴 | C28: 4252241903509 | D28: 0011毕节市特殊教育学校 | E28: 22401001101中小学语文教师 | F28: 207.50 | G28: 81.67 | H28: 75.42
A29: 26 | B29: 邹凯旋 | C29: 4252241902707 | D29: 0011毕节市特殊教育学校 | E29: 22401001101中小学语文教师 | F29: 193.50 | G29: 74.00 | H29: 69.25
A30: 27 | B30: 刘艳 | C30: 4252241903807 | D30: 0011毕节市特殊教育学校 | E30: 22401001101中小学语文教师 | F30: 190.00 | G30: 66.00 | H30: 64.67
A31: 28 | B31: 陈雨欣 | C31: 4152241704721 | D31: 0011毕节市特殊教育学校 | E31: 22401001102中小学舞蹈教师 | F31: 192.50 | G31: 92.00 | H31: 78.08
A32: 29 | B32: 蒋艳萍 | C32: 4152241704421 | D32: 0011毕节市特殊教育学校 | E32: 22401001102中小学舞蹈教师 | F32: 186.00 | G32: 89.67 | H32: 75.84
A33: 30 | B33: 郭妍 | C33: 4152241704515 | D33: 0011毕节市特殊教育学校 | E33: 22401001102中小学舞蹈教师 | F33: 179.00 | G33: 87.00 | H33: 73.33
A34: 31 | B34: 毛义填 | C34: 4252241903502 | D34: 0011毕节市特殊教育学校 | E34: 22401001103中小学信息技术教师 | F34: 181.00 | G34: 78.25 | H34: 69.29
A35: 32 | B35: 安章婷 | C35: 4252241903425 | D35: 0011毕节市特殊教育学校 | E35: 22401001103中小学信息技术教师 | F35: 180.00 | G35: 76.00 | H35: 68.00
A36: 33 | B36: 谭正柄 | C36: 4252241903907 | D36: 0011毕节市特殊教育学校 | E36: 22401001103中小学信息技术教师 | F36: 174.50 | G36: 81.75 | H36: 69.96
A37: 34 | B37: 彭露雲 | C37: 4252241903418 | D37: 0011毕节市特殊教育学校 | E37: 22401001104中小学思政教师 | F37: 188.50 | G37: 86.00 | H37: 74.42
A38: 35 | B38: 邹丹 | C38: 4252241902929 | D38: 0011毕节市特殊教育学校 | E38: 22401001104中小学思政教师 | F38: 188.00 | G38: 71.33 | H38: 67.00
A39: 36 | B39: 陈马云 | C39: 4252241903506 | D39: 0011毕节市特殊教育学校 | E39: 22401001104中小学思政教师 | F39: 174.00 | G39: 82.67 | H39: 70.34
A40: 37 | B40: 黄醒 | C40: 5252242004322 | D40: 0011毕节市特殊教育学校 | E40: 22401001105医务室医生 | F40: 186.30 | G40: 72.20 | H40: 67.15
A41: 38 | B41: 叶菊 | C41: 5252242004117 | D41: 0011毕节市特殊教育学校 | E41: 22401001105医务室医生 | F41: 174.60 | G41: 68.40 | H41: 63.30
A42: 39 | B42: 靳巡 | C42: 5252242004130 | D42: 0011毕节市特殊教育学校 | E42: 22401001105医务室医生 | F42: 174.20 | G42: 67.80 | H42: 62.93
A43: 40 | B43: 蒙爽 | C43: 4152241704626 | D43: 0012毕节市实验学校 | E43: 22401001201语文教师 | F43: 201.00 | G43: 82.48 | H43: 74.74
A44: 41 | B44: 宋许 | C44: 4152241704716 | D44: 0012毕节市实验学校 | E44: 22401001201语文教师 | F44: 196.50 | G44: 77.71 | H44: 71.61
A45: 42 | B45: 刘依纯 | C45: 4152241704704 | D45: 0012毕节市实验学校 | E45: 22401001201语文教师 | F45: 183.50 | G45: 80.65 | H45: 70.91
A46: 43 | B46: 吴雅诗 | C46: 4152241704717 | D46: 0012毕节市实验学校 | E46: 22401001201语文教师 | F46: 183.50 | G46: 79.90 | H46: 70.53
A47: 44 | B47: 尹蓉 | C47: 4152241704501 | D47: 0012毕节市实验学校 | E47: 22401001201语文教师 | F47: 180.00 | G47: 85.57 | H47: 72.79
A48: 45 | B48: 熊芳 | C48: 4152241704701 | D48: 0012毕节市实验学校 | E48: 22401001201语文教师 | F48: 179.50 | G48: 75.60 | H48: 67.72
A49: 46 | B49: 万雨 | C49: 4152241704404 | D49: 0012毕节市实验学校 | E49: 22401001201语文教师 | F49: 177.50 | G49: 79.66 | H49: 69.41
A50: 47 | B50: 崔蝶 | C50: 4152241704307 | D50: 0012毕节市实验学校 | E50: 22401001201语文教师 | F50: 176.00 | G50: 74.55 | H50: 66.61
A51: 48 | B51: 张云星 | C51: 4152241704516 | D51: 0012毕节市实验学校 | E51: 22401001201语文教师 | F51: 174.50 | G51: 76.84 | H51: 67.50
A52: 49 | B52: 张鑫荣 | C52: 4152241704729 | D52: 0012毕节市实验学校 | E52: 22401001201语文教师 | F52: 173.00 | G52: 77.59 | H52: 67.63
A53: 50 | B53: 张灵巧 | C53: 4152241704315 | D53: 0012毕节市实验学校 | E53: 22401001201语文教师 | F53: 172.50 | G53: 79.48 | H53: 68.49
A54: 51 | B54: 陈漫琳 | C54: 4152241704306 | D54: 0012毕节市实验学校 | E54: 22401001201语文教师 | F54: 171.00 | G54: 82.18 | H54: 69.59
A55: 52 | B55: 陈兰兰 | C55: 4152241704423 | D55: 0012毕节市实验学校 | E55: 22401001201语文教师 | F55: 171.00 | G55: 76.76 | H55: 66.88
A56: 53 | B56: 徐信 | C56: 4152241704718 | D56: 0012毕节市实验学校 | E56: 22401001201语文教师 | F56: 170.50 | G56: 72.81 | H56: 64.82
A57: 54 | B57: 郑友静 | C57: 4152241704611 | D57: 0012毕节市实验学校 | E57: 22401001201语文教师 | F57: 170.00 | G57: 77.94 | H57: 67.30
A58: 55 | B58: 温兰 | C58: 4152241704714 | D58: 0012毕节市实验学校 | E58: 22401001201语文教师 | F58: 170.00 | G58: 缺考 | H58: =F58/3*0.5 -> 28.33
A59: 56 | B59: 郭丁荣 | C59: 4152241802530 | D59: 0012毕节市实验学校 | E59: 22401001202语文教师 | F59: 201.00 | G59: 76.67 | H59: 71.84
A60: 57 | B60: 任天宇 | C60: 4152241804010 | D60: 0012毕节市实验学校 | E60: 22401001202语文教师 | F60: 195.00 | G60: 80.67 | H60: 72.84
A61: 58 | B61: 李影 | C61: 4152241803823 | D61: 0012毕节市实验学校 | E61: 22401001202语文教师 | F61: 192.50 | G61: 78.33 | H61: 71.25
A62: 59 | B62: 吴茂林 | C62: 4152241801821 | D62: 0012毕节市实验学校 | E62: 22401001202语文教师 | F62: 188.00 | G62: 86.33 | H62: 74.50
A63: 60 | B63: 李倩 | C63: 4152241802115 | D63: 0012毕节市实验学校 | E63: 22401001202语文教师 | F63: 187.00 | G63: 83.33 | H63: 72.83
A64: 61 | B64: 刘双 | C64: 4152241801001 | D64: 0012毕节市实验学校 | E64: 22401001202语文教师 | F64: 186.50 | G64: 80.33 | H64: 71.25
A65: 62 | B65: 刘诗意 | C65: 4152241801202 | D65: 0012毕节市实验学校 | E65: 22401001202语文教师 | F65: 184.00 | G65: 80.67 | H65: 71.00
A66: 63 | B66: 胡蓉 | C66: 4152241802628 | D66: 0012毕节市实验学校 | E66: 22401001202语文教师 | F66: 184.00 | G66: 84.00 | H66: 72.67
A67: 64 | B67: 刘俊池 | C67: 4152241800306 | D67: 0012毕节市实验学校 | E67: 22401001202语文教师 | F67: 182.50 | G67: 86.33 | H67: 73.58
A68: 65 | B68: 王登燕 | C68: 4152241801703 | D68: 0012毕节市实验学校 | E68: 22401001202语文教师 | F68: 180.50 | G68: 68.00 | H68: =F68/3*0.5+G68*0.5 -> 64.08
A69: 66 | B69: 李丹 | C69: 4152241805024 | D69: 0012毕节市实验学校 | E69: 22401001202语文教师 | F69: 180.50 | G69: 83.67 | H69: 71.92
A70: 67 | B70: 王宇杰 | C70: 4152241804825 | D70: 0012毕节市实验学校 | E70: 22401001202语文教师 | F70: 179.50 | G70: 缺考 | H70: =F70/3*0.5 -> 29.92
A71: 68 | B71: 罗曼丽 | C71: 4152241801120 | D71: 0012毕节市实验学校 | E71: 22401001202语文教师 | F71: 178.50 | G71: 68.00 | H71: 63.75
A72: 69 | B72: 徐孟 | C72: 4152241805406 | D72: 0012毕节市实验学校 | E72: 22401001202语文教师 | F72: 177.00 | G72: 80.67 | H72: 69.84
A73: 70 | B73: 赵润秀 | C73: 4152241804722 | D73: 0012毕节市实验学校 | E73: 22401001202语文教师 | F73: 176.50 | G73: 76.00 | H73: 67.42
A74: 71 | B74: 邱路 | C74: 4152241800423 | D74: 0012毕节市实验学校 | E74: 22401001203语文教师 | F74: 195.50 | G74: 80.39 | H74: 72.78
A75: 72 | B75: 范春菊 | C75: 4152241802205 | D75: 0012毕节市实验学校 | E75: 22401001203语文教师 | F75: 192.50 | G75: 82.49 | H75: 73.33
A76: 73 | B76: 李雨洁 | C76: 4152241803110 | D76: 0012毕节市实验学校 | E76: 22401001203语文教师 | F76: 188.50 | G76: 87.88 | H76: 75.36
A77: 74 | B77: 史灵昕 | C77: 4152241805228 | D77: 0012毕节市实验学校 | E77: 22401001203语文教师 | F77: 188.50 | G77: 80.52 | H77: 71.68
A78: 75 | B78: 李安琪 | C78: 4152241804417 | D78: 0012毕节市实验学校 | E78: 22401001203语文教师 | F78: 186.00 | G78: 79.59 | H78: 70.80
A79: 76 | B79: 康月 | C79: 4152241800311 | D79: 0012毕节市实验学校 | E79: 22401001203语文教师 | F79: 184.50 | G79: 76.20 | H79: 68.85
A80: 77 | B80: 杨登位 | C80: 4152241802506 | D80: 0012毕节市实验学校 | E80: 22401001203语文教师 | F80: 184.00 | G80: 80.35 | H80: 70.84
A81: 78 | B81: 杨芮 | C81: 4152241802416 | D81: 0012毕节市实验学校 | E81: 22401001203语文教师 | F81: 180.00 | G81: 78.77 | H81: 69.39
A82: 79 | B82: 肖蓉 | C82: 4152241803403 | D82: 0012毕节市实验学校 | E82: 22401001203语文教师 | F82: 179.50 | G82: 80.17 | H82: 70.00
A83: 80 | B83: 吴晓春 | C83: 4152241803514 | D83: 0012毕节市实验学校 | E83: 22401001203语文教师 | F83: 179.00 | G83: 80.03 | H83: 69.85
A84: 81 | B84: 丁雪 | C84: 4152241804701 | D84: 0012毕节市实验学校 | E84: 22401001203语文教师 | F84: 179.00 | G84: 79.75 | H84: 69.71
A85: 82 | B85: 翟春兰 | C85: 4152241801518 | D85: 0012毕节市实验学校 | E85: 22401001203语文教师 | F85: 177.00 | G85: 71.24 | H85: 65.12
A86: 83 | B86: 何倩 | C86: 4152241803627 | D86: 0012毕节市实验学校 | E86: 22401001203语文教师 | F86: 176.50 | G86: 82.07 | H86: 70.45
A87: 84 | B87: 雷敏 | C87: 4152241801225 | D87: 0012毕节市实验学校 | E87: 22401001203语文教师 | F87: 176.00 | G87: 68.55 | H87: 63.61
A88: 85 | B88: 龙健平 | C88: 4152241801823 | D88: 0012毕节市实验学校 | E88: 22401001203语文教师 | F88: 175.00 | G88: 67.35 | H88: 62.84
A89: 86 | B89: 罗克艳 | C89: 4152241804116 | D89: 0012毕节市实验学校 | E89: 22401001203语文教师 | F89: 175.00 | G89: 70.43 | H89: 64.38
A90: 87 | B90: 吴月悦 | C90: 4152241805102 | D90: 0012毕节市实验学校 | E90: 22401001203语文教师 | F90: 175.00 | G90: 82.72 | H90: 70.53
A91: 88 | B91: 丁宁 | C91: 4152241805319 | D91: 0012毕节市实验学校 | E91: 22401001204语文教师 | F91: 196.50 | G91: 78.84 | H91: 72.17
A92: 89 | B92: 马秀芳 | C92: 4152241800323 | D92: 0012毕节市实验学校 | E92: 22401001204语文教师 | F92: 193.00 | G92: 75.46 | H92: 69.90
A93: 90 | B93: 许燕红 | C93: 4152241805014 | D93: 0012毕节市实验学校 | E93: 22401001204语文教师 | F93: 190.50 | G93: 73.38 | H93: 68.44
A94: 91 | B94: 邱曼 | C94: 4152241802430 | D94: 0012毕节市实验学校 | E94: 22401001204语文教师 | F94: 188.50 | G94: 70.48 | H94: 66.66
A95: 92 | B95: 赵蓉 | C95: 4152241802227 | D95: 0012毕节市实验学校 | E95: 22401001204语文教师 | F95: 188.00 | G95: 64.88 | H95: 63.77
A96: 93 | B96: 王婧怡 | C96: 4152241803405 | D96: 0012毕节市实验学校 | E96: 22401001204语文教师 | F96: 188.00 | G96: 缺考 | H96: =F96/3*0.5 -> 31.33
A97: 94 | B97: 吴浣 | C97: 4152241803113 | D97: 0012毕节市实验学校 | E97: 22401001204语文教师 | F97: 186.00 | G97: 79.95 | H97: 70.98
A98: 95 | B98: 周蕾 | C98: 4152241805723 | D98: 0012毕节市实验学校 | E98: 22401001204语文教师 | F98: 185.50 | G98: 70.29 | H98: 66.06
A99: 96 | B99: 杨鸿雁 | C99: 4152241802018 | D99: 0012毕节市实验学校 | E99: 22401001204语文教师 | F99: 185.00 | G99: 76.12 | H99: 68.89
A100: 97 | B100: 梅娇 | C100: 4152241804403 | D100: 0012毕节市实验学校 | E100: 22401001204语文教师 | F100: 185.00 | G100: 83.24 | H100: 72.45
A101: 98 | B101: 吴一秀 | C101: 4152241803105 | D101: 0012毕节市实验学校 | E101: 22401001204语文教师 | F101: 182.50 | G101: 71.72 | H101: 66.28
A102: 99 | B102: 胡涛 | C102: 4152241802607 | D102: 0012毕节市实验学校 | E102: 22401001204语文教师 | F102: 180.50 | G102: 78.52 | H102: 69.34
A103: 100 | B103: 路兴松 | C103: 4152241802327 | D103: 0012毕节市实验学校 | E103: 22401001204语文教师 | F103: 180.00 | G103: 缺考 | H103: =F103/3*0.5 -> 30.00
A104: 101 | B104: 姚思思 | C104: 4152241803004 | D104: 0012毕节市实验学校 | E104: 22401001204语文教师 | F104: 179.50 | G104: 64.53 | H104: 62.18
A105: 102 | B105: 崔丽杨 | C105: 4152241801630 | D105: 0012毕节市实验学校 | E105: 22401001204语文教师 | F105: 178.50 | G105: 80.37 | H105: 69.94
A106: 103 | B106: 郑永丽 | C106: 4152241801708 | D106: 0012毕节市实验学校 | E106: 22401001204语文教师 | F106: 178.50 | G106: 71.35 | H106: 65.43
A107: 104 | B107: 姜赵蕾 | C107: 4152241802817 | D107: 0012毕节市实验学校 | E107: 22401001205语文教师 | F107: 204.50 | G107: 86.71 | H107: 77.44
A108: 105 | B108: 张梦楠 | C108: 4152241805607 | D108: 0012毕节市实验学校 | E108: 22401001205语文教师 | F108: 199.00 | G108: 82.62 | H108: 74.48
A109: 106 | B109: 古青莲 | C109: 4152241804605 | D109: 0012毕节市实验学校 | E109: 22401001205语文教师 | F109: 195.00 | G109: 69.85 | H109: 67.43
A110: 107 | B110: 徐寒秋 | C110: 4152241800623 | D110: 0012毕节市实验学校 | E110: 22401001205语文教师 | F110: 188.00 | G110: 79.45 | H110: 71.06
A111: 108 | B111: 张文杰 | C111: 4152241800520 | D111: 0012毕节市实验学校 | E111: 22401001205语文教师 | F111: 187.00 | G111: 82.47 | H111: 72.40
A112: 109 | B112: 高树苹 | C112: 4152241803816 | D112: 0012毕节市实验学校 | E112: 22401001205语文教师 | F112: 185.50 | G112: 67.49 | H112: 64.66
A113: 110 | B113: 朱勋 | C113: 4152241800620 | D113: 0012毕节市实验学校 | E113: 22401001205语文教师 | F113: 184.00 | G113: 缺考 | H113: =F113/3*0.5 -> 30.67
A114: 111 | B114: 吕权艳 | C114: 4152241804011 | D114: 0012毕节市实验学校 | E114: 22401001205语文教师 | F114: 182.00 | G114: 75.61 | H114: 68.14
A115: 112 | B115: 王翠梅 | C115: 4152241805101 | D115: 0012毕节市实验学校 | E115: 22401001205语文教师 | F115: 182.00 | G115: 74.89 | H115: 67.78
A116: 113 | B116: 王丽 | C116: 4152241802117 | D116: 0012毕节市实验学校 | E116: 22401001205语文教师 | F116: 180.00 | G116: 75.96 | H116: 67.98
A117: 114 | B117: 吴积 | C117: 4152241801829 | D117: 0012毕节市实验学校 | E117: 22401001205语文教师 | F117: 180.00 | G117: 78.71 | H117: 69.36
A118: 115 | B118: 张琴英 | C118: 4152241801519 | D118: 0012毕节市实验学校 | E118: 22401001205语文教师 | F118: 179.00 | G118: 80.77 | H118: 70.22
A119: 116 | B119: 雷易辑 | C119: 4152241805721 | D119: 0012毕节市实验学校 | E119: 22401001205语文教师 | F119: 177.50 | G119: 78.88 | H119: 69.02
A120: 117 | B120: 苏丹 | C120: 4152241804119 | D120: 0012毕节市实验学校 | E120: 22401001205语文教师 | F120: 176.50 | G120: 79.21 | H120: 69.02
A121: 118 | B121: 张秋艳 | C121: 4152241801119 | D121: 0012毕节市实验学校 | E121: 22401001205语文教师 | F121: 176.00 | G121: 73.96 | H121: 66.31
A122: 119 | B122: 杨雪 | C122: 4152241801502 | D122: 0012毕节市实验学校 | E122: 22401001206语文教师 | F122: 191.50 | G122: 84.12 | H122: 73.98
A123: 120 | B123: 喻芳 | C123: 4152241803402 | D123: 0012毕节市实验学校 | E123: 22401001206语文教师 | F123: 186.50 | G123: 74.96 | H123: 68.56
A124: 121 | B124: 王典清 | C124: 4152241801525 | D124: 0012毕节市实验学校 | E124: 22401001206语文教师 | F124: 183.50 | G124: 80.18 | H124: 70.67
A125: 122 | B125: 李婷 | C125: 4152241805214 | D125: 0012毕节市实验学校 | E125: 22401001206语文教师 | F125: 180.50 | G125: 73.99 | H125: 67.08
A126: 123 | B126: 张荣荣 | C126: 4152241801106 | D126: 0012毕节市实验学校 | E126: 22401001206语文教师 | F126: 174.50 | G126: 74.19 | H126: 66.18
A127: 124 | B127: 赵玉梅 | C127: 4152241804404 | D127: 0012毕节市实验学校 | E127: 22401001206语文教师 | F127: 174.00 | G127: 76.37 | H127: 67.19
A128: 125 | B128: 徐浪云 | C128: 4152241801221 | D128: 0012毕节市实验学校 | E128: 22401001206语文教师 | F128: 169.50 | G128: 83.16 | H128: 69.83
A129: 126 | B129: 徐娅 | C129: 4152241803107 | D129: 0012毕节市实验学校 | E129: 22401001206语文教师 | F129: 166.50 | G129: 72.34 | H129: 63.92
A130: 127 | B130: 袁铖 | C130: 4152241804021 | D130: 0012毕节市实验学校 | E130: 22401001206语文教师 | F130: 166.00 | G130: 70.91 | H130: 63.12
A131: 128 | B131: 石梦阳 | C131: 4152241805429 | D131: 0012毕节市实验学校 | E131: 22401001206语文教师 | F131: 164.50 | G131: 77.64 | H131: 66.24
A132: 129 | B132: 汪小丁 | C132: 4152241803620 | D132: 0012毕节市实验学校 | E132: 22401001206语文教师 | F132: 164.00 | G132: 71.78 | H132: =F132/3*0.5+G132*0.5 -> 63.22
A133: 130 | B133: 马银香 | C133: 4152241800517 | D133: 0012毕节市实验学校 | E133: 22401001206语文教师 | F133: 164.00 | G133: 72.33 | H133: 63.50
A134: 131 | B134: 龚柔 | C134: 4152241801706 | D134: 0012毕节市实验学校 | E134: 22401001206语文教师 | F134: 164.00 | G134: 75.83 | H134: 65.25
A135: 132 | B135: 李梅 | C135: 4152241802611 | D135: 0012毕节市实验学校 | E135: 22401001207数学教师 | F135: 192.00 | G135: 85.26 | H135: 74.63
A136: 133 | B136: 陈施施 | C136: 4152241801720 | D136: 0012毕节市实验学校 | E136: 22401001207数学教师 | F136: 189.50 | G136: 75.67 | H136: 69.42
A137: 134 | B137: 朱颜 | C137: 4152241800411 | D137: 0012毕节市实验学校 | E137: 22401001207数学教师 | F137: 188.50 | G137: 79.82 | H137: 71.33
A138: 135 | B138: 丁嘉豪 | C138: 4152241803624 | D138: 0012毕节市实验学校 | E138: 22401001207数学教师 | F138: 188.50 | G138: 79.38 | H138: 71.11
A139: 136 | B139: 付华金 | C139: 4152241800519 | D139: 0012毕节市实验学校 | E139: 22401001207数学教师 | F139: 182.50 | G139: 81.08 | H139: 70.96
A140: 137 | B140: 杨禄会 | C140: 4152241801004 | D140: 0012毕节市实验学校 | E140: 22401001207数学教师 | F140: 180.50 | G140: 73.23 | H140: 66.70
A141: 138 | B141: 赵琴 | C141: 4152241800615 | D141: 0012毕节市实验学校 | E141: 22401001207数学教师 | F141: 179.50 | G141: 82.19 | H141: 71.01
A142: 139 | B142: 陈运强 | C142: 4152241802621 | D142: 0012毕节市实验学校 | E142: 22401001207数学教师 | F142: 179.50 | G142: 66.33 | H142: 63.08
A143: 140 | B143: 吴朗 | C143: 4152241801029 | D143: 0012毕节市实验学校 | E143: 22401001207数学教师 | F143: 173.50 | G143: 69.89 | H143: 63.86
A144: 141 | B144: 徐红 | C144: 4152241804805 | D144: 0012毕节市实验学校 | E144: 22401001207数学教师 | F144: 173.50 | G144: 65.42 | H144: 61.63
A145: 142 | B145: 郑杰 | C145: 4152241801725 | D145: 0012毕节市实验学校 | E145: 22401001207数学教师 | F145: 172.50 | G145: 80.37 | H145: 68.94
A146: 143 | B146: 肖悦 | C146: 4152241801308 | D146: 0012毕节市实验学校 | E146: 22401001207数学教师 | F146: 167.00 | G146: 68.04 | H146: 61.85
A147: 144 | B147: 邓海英 | C147: 4152241800804 | D147: 0012毕节市实验学校 | E147: 22401001207数学教师 | F147: 166.00 | G147: 81.27 | H147: 68.30
A148: 145 | B148: 欧富双 | C148: 4152241804621 | D148: 0012毕节市实验学校 | E148: 22401001207数学教师 | F148: 166.00 | G148: 缺考 | H148: =F148/3*0.5 -> 27.67
A149: 146 | B149: 陈影 | C149: 4152241803728 | D149: 0012毕节市实验学校 | E149: 22401001207数学教师 | F149: 165.50 | G149: 缺考 | H149: =F149/3*0.5 -> 27.58
A150: 147 | B150: 谷雨晴 | C150: 4152241805215 | D150: 0012毕节市实验学校 | E150: 22401001207数学教师 | F150: 165.50 | G150: 79.16 | H150: 67.16
A151: 148 | B151: 王清丽 | C151: 4152241803912 | D151: 0012毕节市实验学校 | E151: 22401001208数学教师 | F151: 186.50 | G151: 79.90 | H151: 71.03
A152: 149 | B152: 邹欣岑 | C152: 4152241800219 | D152: 0012毕节市实验学校 | E152: 22401001208数学教师 | F152: 184.00 | G152: 83.43 | H152: 72.38
A153: 150 | B153: 熊馨兰 | C153: 4152241801612 | D153: 0012毕节市实验学校 | E153: 22401001208数学教师 | F153: 183.00 | G153: 82.17 | H153: 71.59
A154: 151 | B154: 张迪 | C154: 4152241800908 | D154: 0012毕节市实验学校 | E154: 22401001208数学教师 | F154: 182.00 | G154: 81.63 | H154: 71.15
A155: 152 | B155: 张滨燕 | C155: 4152241801624 | D155: 0012毕节市实验学校 | E155: 22401001208数学教师 | F155: 178.50 | G155: 77.57 | H155: 68.54
A156: 153 | B156: 李成 | C156: 4152241801526 | D156: 0012毕节市实验学校 | E156: 22401001208数学教师 | F156: 178.00 | G156: 74.47 | H156: 66.90
A157: 154 | B157: 苏金凤 | C157: 4152241805511 | D157: 0012毕节市实验学校 | E157: 22401001208数学教师 | F157: 177.50 | G157: 77.37 | H157: 68.27
A158: 155 | B158: 陆志成 | C158: 4152241804819 | D158: 0012毕节市实验学校 | E158: 22401001208数学教师 | F158: 177.00 | G158: 78.60 | H158: 68.80
A159: 156 | B159: 刘衍仙 | C159: 4152241804304 | D159: 0012毕节市实验学校 | E159: 22401001208数学教师 | F159: 176.50 | G159: 76.97 | H159: 67.90
A160: 157 | B160: 宋旭明 | C160: 4152241800120 | D160: 0012毕节市实验学校 | E160: 22401001208数学教师 | F160: 174.50 | G160: 85.07 | H160: 71.62
A161: 158 | B161: 陈正蝶 | C161: 4152241801025 | D161: 0012毕节市实验学校 | E161: 22401001208数学教师 | F161: 174.50 | G161: 79.13 | H161: 68.65
A162: 159 | B162: 吴亚兰 | C162: 4152241800605 | D162: 0012毕节市实验学校 | E162: 22401001208数学教师 | F162: 174.00 | G162: 80.13 | H162: 69.07
A163: 160 | B163: 周晓雪 | C163: 4152241805504 | D163: 0012毕节市实验学校 | E163: 22401001208数学教师 | F163: 173.50 | G163: 73.93 | H163: 65.88
A164: 161 | B164: 武孟宪 | C164: 4152241804409 | D164: 0012毕节市实验学校 | E164: 22401001208数学教师 | F164: 171.50 | G164: 76.53 | H164: 66.85
A165: 162 | B165: 李会飞 | C165: 4152241804615 | D165: 0012毕节市实验学校 | E165: 22401001208数学教师 | F165: 170.50 | G165: 79.50 | H165: 68.17
A166: 163 | B166: 杨昌建 | C166: 4152241804702 | D166: 0012毕节市实验学校 | E166: 22401001208数学教师 | F166: 170.50 | G166: 78.67 | H166: 67.75
A167: 164 | B167: 赵仁会 | C167: 4152241803525 | D167: 0012毕节市实验学校 | E167: 22401001209数学教师 | F167: 193.50 | G167: 70.33 | H167: 67.42
A168: 165 | B168: 李娟 | C168: 4152241800114 | D168: 0012毕节市实验学校 | E168: 22401001209数学教师 | F168: 187.00 | G168: 80.67 | H168: 71.50
A169: 166 | B169: 韩茜 | C169: 4152241803505 | D169: 0012毕节市实验学校 | E169: 22401001209数学教师 | F169: 184.50 | G169: 70.33 | H169: 65.92
A170: 167 | B170: 邓波 | C170: 4152241801003 | D170: 0012毕节市实验学校 | E170: 22401001209数学教师 | F170: 182.50 | G170: 82.00 | H170: 71.42
A171: 168 | B171: 冯海思 | C171: 4152241802519 | D171: 0012毕节市实验学校 | E171: 22401001209数学教师 | F171: 179.50 | G171: 82.33 | H171: 71.08
A172: 169 | B172: 朱琪琪 | C172: 4152241804218 | D172: 0012毕节市实验学校 | E172: 22401001209数学教师 | F172: 178.50 | G172: 70.67 | H172: 65.09
A173: 170 | B173: 吴亚红 | C173: 4152241805604 | D173: 0012毕节市实验学校 | E173: 22401001209数学教师 | F173: 174.00 | G173: 78.00 | H173: 68.00
A174: 171 | B174: 张芸 | C174: 4152241804311 | D174: 0012毕节市实验学校 | E174: 22401001209数学教师 | F174: 173.00 | G174: 69.67 | H174: 63.67
A175: 172 | B175: 李新荣 | C175: 4152241802724 | D175: 0012毕节市实验学校 | E175: 22401001209数学教师 | F175: 171.50 | G175: 78.67 | H175: 67.92
A176: 173 | B176: 杨璧宇 | C176: 4152241805115 | D176: 0012毕节市实验学校 | E176: 22401001209数学教师 | F176: 168.50 | G176: 83.67 | H176: 69.92
A177: 174 | B177: 胡林巧 | C177: 4152241802330 | D177: 0012毕节市实验学校 | E177: 22401001209数学教师 | F177: 168.00 | G177: 71.67 | H177: 63.84
A178: 175 | B178: 吴蓉 | C178: 4152241804324 | D178: 0012毕节市实验学校 | E178: 22401001209数学教师 | F178: 166.50 | G178: 75.33 | H178: 65.42
A179: 176 | B179: 伍妍 | C179: 4152241803207 | D179: 0012毕节市实验学校 | E179: 22401001210音乐教师 | F179: 178.00 | G179: 75.76 | H179: 67.55
A180: 177 | B180: 罗淳曦 | C180: 4152241802217 | D180: 0012毕节市实验学校 | E180: 22401001210音乐教师 | F180: 177.00 | G180: 73.01 | H180: 66.01
A181: 178 | B181: 黄晨阳 | C181: 4152241804508 | D181: 0012毕节市实验学校 | E181: 22401001210音乐教师 | F181: 176.50 | G181: 65.01 | H181: 61.92
A182: 179 | B182: 张甜 | C182: 4152241803323 | D182: 0012毕节市实验学校 | E182: 22401001210音乐教师 | F182: 175.00 | G182: 74.06 | H182: 66.20
A183: 180 | B183: 王佳敏 | C183: 4152241801726 | D183: 0012毕节市实验学校 | E183: 22401001210音乐教师 | F183: 174.00 | G183: 72.08 | H183: 65.04
A184: 181 | B184: 秦芳 | C184: 4152241805428 | D184: 0012毕节市实验学校 | E184: 22401001210音乐教师 | F184: 174.00 | G184: 76.69 | H184: 67.35
A185: 182 | B185: 唐宇璇 | C185: 4152241805624 | D185: 0012毕节市实验学校 | E185: 22401001210音乐教师 | F185: 173.50 | G185: 81.40 | H185: 69.62
A186: 183 | B186: 杨立律 | C186: 4152241801825 | D186: 0012毕节市实验学校 | E186: 22401001210音乐教师 | F186: 173.00 | G186: 76.97 | H186: 67.32
A187: 184 | B187: 陈赟 | C187: 4152241805513 | D187: 0012毕节市实验学校 | E187: 22401001210音乐教师 | F187: 172.50 | G187: 70.56 | H187: 64.03
A188: 185 | B188: 冉进艳 | C188: 4152241802025 | D188: 0012毕节市实验学校 | E188: 22401001210音乐教师 | F188: 171.00 | G188: 74.41 | H188: 65.71
A189: 186 | B189: 王晨曦 | C189: 4152241803621 | D189: 0012毕节市实验学校 | E189: 22401001210音乐教师 | F189: 167.50 | G189: 74.59 | H189: 65.21
A190: 187 | B190: 陈威 | C190: 4152241803918 | D190: 0012毕节市实验学校 | E190: 22401001210音乐教师 | F190: 167.50 | G190: 72.78 | H190: 64.31
A191: 188 | B191: 邓成团 | C191: 4152241805411 | D191: 0012毕节市实验学校 | E191: 22401001211体育教师 | F191: 195.00 | G191: 76.10 | H191: 70.55
A192: 189 | B192: 杨茂 | C192: 4152241803114 | D192: 0012毕节市实验学校 | E192: 22401001211体育教师 | F192: 179.50 | G192: 80.92 | H192: 70.38
A193: 190 | B193: 刘文志 | C193: 4152241802711 | D193: 0012毕节市实验学校 | E193: 22401001211体育教师 | F193: 175.00 | G193: 80.71 | H193: 69.52
A194: 191 | B194: 张剑锋 | C194: 4152241804026 | D194: 0012毕节市实验学校 | E194: 22401001211体育教师 | F194: 172.50 | G194: 73.71 | H194: 65.61
A195: 192 | B195: 王庆云 | C195: 4152241800110 | D195: 0012毕节市实验学校 | E195: 22401001211体育教师 | F195: 170.00 | G195: 80.69 | H195: 68.68
A196: 193 | B196: 吴子豪 | C196: 4152241801323 | D196: 0012毕节市实验学校 | E196: 22401001211体育教师 | F196: 169.00 | G196: 80.49 | H196: =F196/3*0.5+G196*0.5 -> 68.41
A197: 194 | B197: 赵胜 | C197: 4152241801305 | D197: 0012毕节市实验学校 | E197: 22401001211体育教师 | F197: 168.50 | G197: 75.90 | H197: 66.03
A198: 195 | B198: 葛黔林 | C198: 4152241804202 | D198: 0012毕节市实验学校 | E198: 22401001211体育教师 | F198: 168.00 | G198: 83.26 | H198: 69.63
A199: 196 | B199: 曹文涵 | C199: 4152241802321 | D199: 0012毕节市实验学校 | E199: 22401001211体育教师 | F199: 167.50 | G199: 77.40 | H199: 66.62
A200: 197 | B200: 王波 | C200: 4152241804128 | D200: 0012毕节市实验学校 | E200: 22401001211体育教师 | F200: 166.00 | G200: 缺考 | H200: =F200/3*0.5 -> 27.67
... 53 more rows
